[Event "BCS-Floripa Super Blitz 2025"]
[Site "Florianopolis"]
[Date "2025.01.22"]
[Round "5.1"]
[White "Delgado Ramirez, Neuris"]
[Black "Rodrigues, Edgar"]
[Result "0-1"]
[Annotator "TA"]
[ECO "B41"]
[WhiteElo "2493"]
[BlackElo "2279"]
[PlyCount "74"]
[EventDate "2025.01.18"]
[EventType "swiss"]
[EventCountry "BRA"]
[SourceTitle "playchess.com"]
[Source "ChessBase"]
[SourceQuality "1"]
[TimeControl "180+2"]

{[%evp 14,74,60,47,48,48,43,41,61,37,61,53,63,25,66,22,36,18,51,-26,-28,-66,-89,-94,-91,-161,-151,-165,-164,-235,-236,-241,-222,-231,-210,-181,-113,-245,-181,-384,-177,-270,-271,-271,-284,-278,-272,-456,-454,-541,-528,-546,-540,-636,-553,-545,-533,-926,-896,-1113,-941,-2005,-1845]} 1. e4 {[%emt 0:00:03]} c5 {[%emt 0:00:01]} 2. Nf3 {[%emt 0:00:01]} e6 {[%emt 0:00:01]} 3. d4 {[%emt 0:00:02]} cxd4 {[%emt 0:00:01]} 4. Nxd4 {[%emt 0:00:01]} a6 {[%emt 0:00:02]} 5. c4 {[%emt 0:00:02]} Nf6 {[%emt 0:00:02]} 6. Nc3 {[%emt 0:00:01]} Qc7 {[%emt 0:00:01]} 7. a3 {[%emt 0:00:02]} b6 {[%emt 0:00:02]} 8. Be3 {[%emt 0:00:01]} Bb7 {[%emt 0:00:02]} 9. f3 {[%emt 0:00:02]} Be7 {[%emt 0:00:02]} 10. Rc1 {[%emt 0:00:02]} d6 {[%emt 0:00:03]} 11. g4 {[%emt 0:00:07][%cal Bg2g4,Bg4g5][%mdl 32]} O-O {[%emt 0:00:08]} 12. g5 {[%emt 0:00:02]} Nfd7 {[%emt 0:00:04]} 13. h4 {[%emt 0:00:02]} Qd8 {[%emt 0:00:18]} 14. Kd2 {[%emt 0:00:11]} Nc6 {[%emt 0:00:19]} 15. Kc2 {[%emt 0:00:02]} Rc8 {[%emt 0:00:33]} 16. Kb1 {[%emt 0:00:45]} (16. Nxc6 $1 $14 Rxc6 17. Be2) 16... Na5 $11 {[%emt 0:00:02]} 17. g6 {[%emt 0:00:30]} hxg6 {[%emt 0:00:12]} (17... Bxh4 18. gxf7+ Rxf7 19. Nxe6 $18) 18. h5 {[%emt 0:00:05] aiming for hxg6.} g5 {[%emt 0:00:08]} (18... Nxc4 19. Bxc4 Rxc4 20. Qe2 $16 (20. hxg6 Bf6 $14)) 19. h6 {[%emt 0:00:11]} (19. Na4 $17) 19... g6 $19 {[%emt 0:00:02]} (19... Nxc4 20. Bxc4 Rxc4 21. hxg7 Kxg7 22. Nd5 $16) 20. h7+ {[%emt 0:00:01]} Kh8 {[%emt 0:00:03]} 21. Nb3 {[%emt 0:00:10]} (21. b3 $142) 21... Nxc4 {[%emt 0:00:20]} 22. Bxc4 {[%emt 0:00:02]} Rxc4 {[%emt 0:00:02]} 23. Bd4+ {[%emt 0:00:05]} e5 {[%emt 0:00:11]} 24. Be3 {[%emt 0:00:02] [#]} g4 {[%emt 0:00:08]} 25. fxg4 {[%emt 0:00:05]} (25. Bh6 $17) 25... Nf6 {[%emt 0:00:04]} (25... Bxe4+ 26. Nxe4 Rxe4 27. Bh6 $11) 26. Qe2 $2 {[%emt 0:00:07]} (26. Nd2 Rxc3 27. bxc3 (27. Rxc3 $2 Nxe4 28. Rc2 Nxd2+ 29. Bxd2 Bxh1 $19)) 26... Rxe4 {[%emt 0:00:10]} (26... Bxe4+ 27. Nxe4 Rxe4 28. Qd3 Rxg4 29. Qxa6 $19) (26... Rxc3 $142 27. bxc3 Bxe4+ (27... Nxe4 $2 28. Rh2 $19) 28. Kb2 Bxh1 (28... Nxh7 29. Rh3 $11) 29. Rxh1 Qa8 (29... Nxh7 $2 30. Qh2 $18)) 27. Nxe4 {[%emt 0:00:07]} (27. Rhg1 $142) 27... Bxe4+ {[%emt 0:00:02]} 28. Ka1 {[%emt 0:00:01][%cal Oe3h6]} Bxh1 {[%emt 0:00:03]} (28... Nxh7 29. Rh3 f5 30. Nd2 $16) 29. Rxh1 {[%emt 0:00:03]} Qa8 {[%emt 0:00:05]} (29... Nxh7 $2 {loses.} 30. Qh2 $18 (30. Qxa6 Qd7 $17)) 30. Qf1 $2 {[%emt 0:00:10]} (30. Rg1 {is the only way for White.}) 30... Nxg4 {[%emt 0:00:07]} 31. Bd2 {[%emt 0:00:09]} Qd5 {[%emt 0:00:03]} 32. Rh3 {[%emt 0:00:02]} f5 {[%emt 0:00:05] Threatens to win with ...f4.} 33. Qxa6 {[%emt 0:00:01]} b5 {[%emt 0:00:05]} 34. Qa7 {[%emt 0:00:04]} Bf6 {[%emt 0:00:03]} 35. Rc3 {[%emt 0:00:11]} e4 {[%emt 0:00:05]} 36. Qd7 {[%emt 0:00:16]} e3 {[%emt 0:00:07]} 37. Bc1 {[%emt 0:00:23]} Bxc3 {[%emt 0:00:05]} 0-1

[Event "BCS-Floripa Super Blitz 2025"]
[Site "Florianopolis"]
[Date "2025.01.22"]
[Round "5.1"]
[White "De Siqueira, Luigy Lira"]
[Black "Jorge, Denrick Cabral Jose"]
[Result "1-0"]
[Annotator "TA"]
[ECO "B52"]
[WhiteElo "2252"]
[BlackElo "1907"]
[PlyCount "57"]
[EventDate "2025.01.18"]
[EventType "swiss"]
[EventCountry "BRA"]
[SourceTitle "playchess.com"]
[Source "ChessBase"]
[SourceQuality "1"]
[TimeControl "180+2"]

{[%evp 9,57,4,10,18,35,29,36,36,33,27,29,0,4,0,-4,-49,0,-68,31,43,35,29,123,114,108,58,164,165,300,305,427,437,453,448,412,347,822,821,1024,858,839,826,29985,458,1311,1267,29982,29983,5731,2934]} 1. e4 {[%emt 0:00:02]} c5 {[%emt 0:00:01]} 2. Nf3 {[%emt 0:00:02]} d6 {[%emt 0:00:01]} 3. Bb5+ {[%emt 0:00:01]} Bd7 {[%emt 0:00:01]} 4. a4 {[%emt 0:00:01]} Nc6 {[%emt 0:00:09]} 5. O-O {[%emt 0:00:03]} g6 {[%emt 0:00:00]} 6. c3 {[%emt 0:00:02][%cal Bc2c3,Bc3d4][%mdl 32]} Bg7 {[%emt 0:00:03]} 7. d4 {[%emt 0:00:01]} cxd4 {[%emt 0:00:03]} 8. cxd4 {[%emt 0:00:01]} Nf6 {[%emt 0:00:05]} 9. Nc3 {[%emt 0:00:02]} O-O {[%emt 0:00:07]} 10. Re1 {[%emt 0:00:03]} a6 {[%emt 0:00:11]} 11. Bc4 {[%emt 0:00:03]} Bg4 {[%emt 0:00:12]} 12. Be3 {[%emt 0:00:06]} Rc8 {[%emt 0:00:13]} (12... Nxe4 $1 $15 13. h3 (13. Nxe4 d5 $15) 13... Bxf3 14. Qxf3 Nf6 (14... Nxd4 $2 15. Qxe4 Nc6 16. Bg5 $18)) 13. Ba2 {[%emt 0:00:01]} (13. Be2 $11) 13... Na5 {[%emt 0:00:06]} (13... Nh5 $15) 14. h3 $14 {[%emt 0:01:04]} Bxf3 {[%emt 0:00:14]} 15. Qxf3 {[%emt 0:00:02]} Nc4 {[%emt 0:00:02] [#]} (15... Nd7 $11 {keeps the balance.}) 16. Bxc4 $1 $16 {[%emt 0:00:01]} Rxc4 {[%emt 0:00:03]} 17. Rad1 {[%emt 0:00:03]} ({Better is} 17. e5 $16 dxe5 18. dxe5 (18. Qxb7 $2 {is the wrong capture.} exd4 19. Red1 e5 $19)) 17... Qb6 {[%emt 0:00:31]} (17... Ne8 $14) 18. e5 $18 {[%emt 0:00:01]} Nd7 {[%emt 0:00:35]} (18... Ne8 {was worth a try.}) 19. Nd5 $1 {[%emt 0:00:02][%csl LRb6,LRe7]} Qd8 {[%emt 0:00:15]} 20. Bg5 {[%emt 0:00:01][%cal Be3g5,Bg5f4,Bf4d6][%mdl 32]} f6 {[%emt 0:00:23]} 21. exf6 {[%emt 0:00:02]} exf6 {[%emt 0:00:09]} 22. Bf4 {[%emt 0:01:07]} Rxa4 $2 {[%emt 0:00:03]} (22... Kh8 23. Qb3 (23. Bxd6 Re8 $18) 23... Rc6 24. Qxb7 Qc8) 23. Bxd6 {[%emt 0:00:02]} Re8 {[%emt 0:00:02] Black is weak on the dark squares} 24. Rxe8+ {[%emt 0:00:03]} Qxe8 {[%emt 0:00:02]} 25. Qb3 {[%emt 0:00:01][%csl LRa4,LRb7,LRf6]} Qf7 {[%emt 0:00:13]} 26. Qxa4 {[%emt 0:00:02]} (26. Ne7+ $142 Kf8 27. Qxb7 (27. Qxa4 Qe6 $18) (27. Nxg6+ Ke8 $18) 27... Qxe7 28. Qxd7 (28. Bxe7+ Kxe7 29. Qc7 Ke6 $18) 28... Kg8 29. Bxe7 (29. Qxe7 h5 $18) 29... h6 30. Qxa4 Kh7 31. Qd7 (31. Qxa6 f5 32. Bf6 Bh8 33. Bxh8 h5 34. Qf6 Kh6 35. h4 Kh7 36. Qg7#)) 26... b5 {[%emt 0:00:07]} (26... Qxd5 $142 27. Qxd7 Bf8) 27. Qb3 {[%emt 0:00:03] Ne7+ would now be deadly.} Nb6 {[%emt 0:00:02]} 28. Ne7+ {[%emt 0:00:01]} Kf8 {[%emt 0:00:05]} 29. Nxg6+ {[%emt 0:00:02]} 1-0

[Event "BCS-Floripa Super Blitz 2025"]
[Site "Florianopolis"]
[Date "2025.01.22"]
[Round "5.2"]
[White "Lima, Darcy"]
[Black "Fier, Alexandr"]
[Result "0-1"]
[Annotator "TA"]
[ECO "A34"]
[WhiteElo "2370"]
[BlackElo "2549"]
[PlyCount "70"]
[EventDate "2025.01.18"]
[EventType "swiss"]
[EventCountry "BRA"]
[SourceTitle "playchess.com"]
[Source "ChessBase"]
[SourceQuality "1"]
[TimeControl "180+2"]

{[%evp 20,70,2,3,0,3,46,0,0,0,25,3,-5,-15,-15,-47,-31,-52,-20,-34,-19,-42,-31,-52,0,0,0,-75,0,0,17,-61,0,0,-7,0,45,0,0,-16,0,0,0,-17,-37,-30,29986,-1512,-1464,-2106,-1365,-29990,-29991]} 1. g3 {[%emt 0:00:01]} c5 {[%emt 0:00:01]} 2. c4 {[%emt 0:00:03]} Nf6 {[%emt 0:00:02]} 3. Bg2 {[%emt 0:00:01]} d5 {[%emt 0:00:01]} 4. cxd5 {[%emt 0:00:03]} Nxd5 {[%emt 0:00:01]} 5. Nc3 {[%emt 0:00:01]} Nc7 {[%emt 0:00:01]} 6. Nf3 {[%emt 0:00:07][%cal Bg1f3,Bf3d2,Bd2c4,Bc4e3][%mdl 32]} Nc6 {[%emt 0:00:01]} 7. d3 {[%emt 0:00:01]} e5 {[%emt 0:00:01]} 8. Nd2 {[%emt 0:00:01]} Bd7 {[%emt 0:00:06]} 9. Nc4 {[%emt 0:00:03]} Be7 {[%emt 0:00:02]} 10. O-O {[%emt 0:00:06]} f6 {[%emt 0:00:09]} 11. f4 {[%emt 0:00:04] With the idea fxe5.} b5 {[%emt 0:00:00]} 12. Ne3 {[%emt 0:00:02]} O-O {[%emt 0:00:02]} 13. f5 {[%emt 0:00:12]} (13. fxe5 $14 {is more appropriate.} Rc8 14. exf6 Bxf6 15. Nc2) 13... Rb8 $11 {[%emt 0:00:01]} 14. Ned5 {[%emt 0:00:11]} Nd4 {[%emt 0:00:04]} 15. Nxc7 {[%emt 0:00:37]} Qxc7 {[%emt 0:00:02]} 16. g4 {[%emt 0:00:04]} Bc6 {[%emt 0:00:01]} 17. Nd5 {[%emt 0:00:02]} Qd8 {[%emt 0:00:05]} 18. e4 {[%emt 0:00:26]} c4 {[%emt 0:00:11]} 19. Be3 {[%emt 0:00:05]} Bc5 {[%emt 0:00:01]} 20. Rc1 {[%emt 0:00:08]} Bxd5 {[%emt 0:00:13]} 21. exd5 {[%emt 0:00:02]} Qb6 {[%emt 0:00:01]} (21... Qa5 $15) 22. Kh1 {[%emt 0:00:11]} (22. dxc4 $2 Ne2+ 23. Kh1 Nxc1 (23... Bxe3 24. c5 $14) 24. Bxc1 bxc4 $19) 22... Qa6 {[%emt 0:00:08]} 23. b3 {[%emt 0:00:15]} (23. a4 $11) 23... Qxa2 {[%emt 0:00:16]} (23... Ba3 $17 24. Bxd4 exd4 (24... Bxc1 25. Bc5 $15)) 24. bxc4 {[%emt 0:00:09]} b4 {[%emt 0:00:00]} 25. Be4 {[%emt 0:00:21]} (25. Ra1 $11 Qb2 26. d6) 25... b3 {[%emt 0:00:02] Black is much more active.} ({Better is} 25... Nb3 $15 26. Bxc5 Nxc5) 26. Rg1 {[%emt 0:00:10]} b2 {[%emt 0:00:02]} 27. Rb1 {[%emt 0:00:01]} h6 {[%emt 0:00:13]} 28. g5 {[%emt 0:00:06]} (28. d6 $5) 28... fxg5 {[%emt 0:00:02]} 29. h4 {[%emt 0:00:00]} Rb6 $36 {[%emt 0:00:20][%mdl 2048] Black fights for an advantage.} (29... gxh4 $2 30. Qg4 Rf7 31. f6 $18 (31. Qxh4 $2 {is the wrong capture.} Nxf5 32. Qh2 Bxe3 $19) (31. Bxh6 Ne2 $15)) (29... Nb3 $5 30. Bxc5 Nxc5 $17) 30. hxg5 {[%emt 0:00:06]} hxg5 {[%emt 0:00:01] Hoping for ...Nb3.} 31. Rxg5 {[%emt 0:00:06]} Rh6+ {[%emt 0:00:02]} 32. Kg2 {[%emt 0:00:01][%cal Og5g7] Rxg7+! would now be deadly.} Nb3 $2 {[%emt 0:00:14][%mdl 8192] [#]} (32... Rff6 $11) 33. Qg4 $4 {[%emt 0:00:12][%mdl 8192] White is weak on the dark squares} Bxe3 $19 {[%emt 0:00:09]} 34. Rxg7+ {[%emt 0:00:08]} Kh8 {[%emt 0:00:01]} 35. f6 {[%emt 0:00:00]} Qxb1 {[%emt 0:00:09]} 0-1

[Event "BCS-Floripa Super Blitz 2025"]
[Site "Florianopolis"]
[Date "2025.01.22"]
[Round "5.2"]
[White "Dos Santos, Welligton Carlos"]
[Black "Kayser, Gustavo Warmling"]
[Result "0-1"]
[Annotator "TA"]
[ECO "A34"]
[WhiteElo "1805"]
[BlackElo "2036"]
[PlyCount "106"]
[EventDate "2025.01.18"]
[EventType "swiss"]
[EventCountry "BRA"]
[SourceTitle "playchess.com"]
[Source "ChessBase"]
[SourceQuality "1"]
[TimeControl "180+2"]

{[%evp 19,106,-39,-33,-25,-22,-25,-10,-5,-2,-56,-62,-67,-61,-51,-52,-79,-67,-107,-79,-78,-78,-78,-66,-83,-25,-50,-50,-62,-37,-80,-81,-79,-87,-252,-244,-394,0,0,-16,-212,-226,-354,0,-35,-33,-46,-43,-38,-36,-49,189,187,294,237,368,251,694,187,175,129,259,181,295,119,112,-552,985,-15,234,-144,-144,-137,-135,-135,-143,-131,-118,-347,-44,-44,-60,-56,-60,-29992,0,-29997,-29998,-29998,-29999]} 1. c4 {[%emt 0:03:04]} Nf6 {[%emt 0:03:04]} 2. Nc3 {[%emt 0:00:02]} c5 {[%emt 0:00:02]} 3. g3 {[%emt 0:00:02]} d5 4. cxd5 {[%emt 0:00:02]} Nxd5 {[%emt 0:00:04]} 5. Bg2 Nc7 {[%emt 0:00:02]} 6. d3 {[%emt 0:00:04]} Nc6 {[%emt 0:00:02]} 7. Nf3 {[%emt 0:00:02]} e5 {[%emt 0:00:02]} 8. O-O {[%emt 0:00:02]} Be7 9. Bd2 {[%emt 0:00:02]} O-O {[%emt 0:00:04]} 10. Rc1 {[%emt 0:00:02]} Bd7 {[%emt 0:00:02]} 11. Be3 {[%emt 0:00:00]} Rc8 {[%emt 0:00:00]} 12. Nd2 {[%emt 0:00:00]} b6 {[%emt 0:00:00]} 13. Nc4 {[%emt 0:00:00]} f6 {[%emt 0:00:00]} 14. Nd5 {[%emt 0:00:00]} (14. f4 $11) 14... Nxd5 $15 {[%emt 0:00:00]} 15. Bxd5+ {[%emt 0:00:00]} Kh8 {[%emt 0:00:00]} 16. Bg2 {[%emt 0:00:00]} Be6 {[%emt 0:00:00]} 17. b3 {[%emt 0:00:00]} Qd7 {[%emt 0:00:00]} 18. Qc2 {[%emt 0:00:00]} Bh3 {[%emt 0:00:00]} 19. Qb2 {[%emt 0:00:00]} Bxg2 {[%emt 0:00:00]} 20. Kxg2 {[%emt 0:00:00]} Rfd8 {[%emt 0:00:00]} 21. Rfd1 {[%emt 0:00:00]} Nd4 {[%emt 0:00:00]} (21... Qe6 $17 22. Nd2 f5) 22. a4 {[%emt 0:00:00]} Qe6 {[%emt 0:00:00]} 23. Re1 {[%emt 0:00:00]} f5 {[%emt 0:00:00]} 24. Kg1 {[%emt 0:00:00] [#]} f4 $1 {[%emt 0:00:00] Black is more active.} 25. Bxd4 {[%emt 0:00:00]} exd4 {[%emt 0:00:00]} (25... Rxd4 $6 26. e3 f3 27. Nxe5 $16 (27. exd4 Qh3 $15)) 26. Nd2 $2 {[%emt 0:00:00] White is weak on the dark squares} (26. gxf4 $17 Qg4+ 27. Kh1) 26... fxg3 $19 {[%emt 0:00:00]} 27. hxg3 {[%emt 0:00:00]} (27. fxg3 {is the only way for White.} Bg5 28. Rcd1) 27... h5 $2 {[%emt 0:00:00]} ({Black should try} 27... Qh3 $19 28. Ne4 Rc6) 28. Kg2 $11 {[%emt 0:00:00]} Bg5 {[%emt 0:00:00]} 29. Rh1 $2 {[%emt 0:00:00]} (29. Rc4 $11 {and White has nothing to worry.}) 29... Qxe2 $19 {[%emt 0:00:00]} 30. Rc2 {[%emt 0:00:00]} (30. Rxh5+ $142 Bh6 (30... Qxh5 31. Rh1 $11) 31. Rh4) 30... Qe8 $2 {[%emt 0:00:00]} (30... Qxd3 $2 31. Rxh5+ Bh6 32. Nf3 $19) (30... Rf8 $1 $19 {[%cal Rf8f2]} 31. Ne4 Qf3+ (31... Qxd3 $2 32. Nxg5 Qg6 33. f4 $18) 32. Kg1 Rce8) 31. Ne4 {[%emt 0:00:00]} Bh6 {[%emt 0:00:00]} 32. Re2 {[%emt 0:00:00][%cal Oe4c5]} Qg6 {[%emt 0:00:00]} 33. Ree1 {[%emt 0:00:00]} Rf8 {[%emt 0:00:00]} 34. Qe2 {[%emt 0:00:00]} Qf7 $2 {[%emt 0:00:00]} (34... Rf5 $15 {stays ahead.}) 35. Qxh5 $18 {[%emt 0:00:00]} Qxb3 {[%emt 0:00:05]} (35... Rc6 36. Qxf7 Rxf7) 36. g4 {[%emt 0:00:08] and Qg6 would now be decisive} (36. Nd6 Rcd8 37. Qg6 Rxd6 (37... Qd5+ 38. Ne4 $18) 38. Qxd6 Rf6 39. Re8+ Kh7 $16) 36... Qxd3 {[%emt 0:00:12]} (36... Rc6 $142 37. g5 Qg8) 37. g5 {[%emt 0:00:01]} Rf5 $2 {[%emt 0:00:18]} (37... Qb3 38. gxh6 g5) 38. Qg4 $2 {[%emt 0:00:01]} (38. Nf6 {[%cal Oh5e8] Intending Qe8+! and mate.} Rg8 (38... Rf8 $2 39. Re8 $18) 39. Re8 (39. Nxg8 Qd2 $11) 39... Rxf6 40. gxf6 gxf6+ 41. Qg4 (41. Rxg8+ Kxg8 42. Re1 Bf8 $18) 41... Qe4+ 42. Rxe4 Rxg4+ 43. Rxg4) 38... Rcf8 {[%emt 0:00:08]} 39. gxh6 {[%emt 0:00:01]} (39. Rh3 $18 Qc4 (39... Rf4 $2 40. Qe6 $18) 40. gxh6) 39... g5 {[%emt 0:00:15]} 40. Rh3 {[%emt 0:00:15]} (40. Nxg5 $2 Rxf2+ 41. Kg1 Rf1+ 42. Kh2 R8f2+ $19) 40... Qc2 {[%emt 0:00:00]} (40... Qc4 $142 41. Rg3 (41. Nxg5 $2 Rxf2+ 42. Kh1 Rf1+ 43. Rxf1 Qxf1+ 44. Qg1 d3 $19) 41... Qd5) 41. Re2 {[%emt 0:00:02]} (41. Nxg5 Qxf2+ (41... Rxf2+ 42. Kg1 $16) 42. Kh1 Qxe1+ 43. Kh2 Rf2+) (41. Kh1 $18) 41... Qd1 $16 {[%emt 0:00:00]} 42. Qh5 $2 {[%emt 0:00:12][%mdl 8192]} (42. Nxg5 $2 Rxf2+ (42... Qxa4 $2 43. Ne6 $18) 43. Rxf2 Qxg4+ $19) (42. Rg3 $16 {and life is bright.} d3 43. Ree3 Qxg4 44. Rxg4) 42... d3 $4 {[%emt 0:00:00][%mdl 8192]} (42... g4 $19 43. Qxg4 Rg8 (43... Qxa4 44. Qg7#) 44. Qxg8+ Kxg8) 43. Rd2 $2 {[%emt 0:00:02]} (43. Qg6 $1 $18 {[%csl Gh6][%cal Rg6g7]} Qa1 44. Rxd3) 43... Qe1 $2 {[%emt 0:00:00] [#]} (43... Qxa4 $11 44. Re3 (44. Nxg5 $2 Qf4 $19) 44... c4) 44. Rhxd3 $1 {[%emt 0:00:05]} Qxe4+ $17 {[%emt 0:00:00]} 45. f3 {[%emt 0:00:01]} Qe7 {[%emt 0:00:00][%cal Og5g4]} (45... Qxa4 46. Qg6 Qa1 47. Rd7) 46. Rd7 {[%emt 0:00:02]} Qf6 {[%emt 0:00:00]} 47. R7d6 {[%emt 0:00:06]} Qe5 {[%emt 0:00:03][%cal Og5g4] and ...g4! should not be overlooked} 48. Qg6 $2 {[%emt 0:00:08]} (48. Rd8 $17 {might work better.}) 48... Rg8 $2 {[%emt 0:00:08]} (48... Rxf3 $19 {( -> ...Qg3+)} 49. Qg7+ Qxg7 50. hxg7+ Kxg7) 49. Rd8 $15 {[%emt 0:00:14]} Rff8 {[%emt 0:00:04] Dancing on a razor blade.} 50. Rxf8 {[%emt 0:00:00]} Rxf8 {[%emt 0:00:00]} 51. Rd7 $2 {[%emt 0:00:00][%mdl 8192]} (51. Qc2 $15) 51... Qb2+ $2 {[%emt 0:00:02]} (51... Qe2+ {mates} 52. Kg1 Qe3+ (52... Rxf3 53. Qh7#) 53. Kh2 Qf2+ (53... Qxf3 54. Qh7#) 54. Kh1 Qxf3+ (54... Rxf3 55. Qh7#) 55. Kh2 Qf2+ 56. Kh1 Qh4+ 57. Kg2 Rf2+ 58. Kg1 Qh2#) 52. Kh3 $2 {[%emt 0:00:01][%mdl 8192]} (52. Kg1 $11 Qa1+ 53. Kf2 Qb2+ 54. Kg1) 52... Rxf3+ {[%emt 0:00:04]} 53. Kg4 {[%emt 0:00:00]} Qg2+ {[%emt 0:00:07]} 0-1

[Event "BCS-Floripa Super Blitz 2025"]
[Site "Florianopolis"]
[Date "2025.01.22"]
[Round "5.3"]
[White "Salinas Herrera, Pablo"]
[Black "Silva, Kaua Marques"]
[Result "1-0"]
[Annotator "TA"]
[ECO "D02"]
[WhiteElo "2471"]
[BlackElo "2249"]
[PlyCount "62"]
[EventDate "2025.01.18"]
[EventType "swiss"]
[EventCountry "BRA"]
[SourceTitle "playchess.com"]
[Source "ChessBase"]
[SourceQuality "1"]
[TimeControl "180+2"]

{[%evp 9,62,10,22,13,5,7,14,-3,3,-37,-25,-33,-25,-49,-46,-70,-77,-69,-55,-58,-59,-67,-72,-69,-68,-78,-53,-61,-58,-225,-1,-9,0,0,84,0,117,0,0,0,785,787,1288,924,1373,1010,1005,941,1194,1154,29987,29988,29988,29989,29992]} 1. d4 {[%emt 0:00:01]} Nf6 {[%emt 0:00:01]} 2. Nf3 {[%emt 0:00:01]} d5 {[%emt 0:00:03]} 3. Bf4 {[%emt 0:00:01]} e6 {[%emt 0:00:01]} 4. e3 {[%emt 0:00:01]} Bd6 {[%emt 0:00:00]} 5. Nbd2 {[%emt 0:00:01]} c5 {[%emt 0:00:08]} 6. c3 {[%emt 0:00:02]} O-O {[%emt 0:00:04]} 7. Bd3 {[%emt 0:00:01]} b6 {[%emt 0:00:31]} 8. Ne5 {[%emt 0:00:17]} Ba6 {[%emt 0:00:16]} 9. Bc2 {[%emt 0:00:02]} Qc7 {[%emt 0:00:42]} 10. Bg3 {[%emt 0:00:06]} Nc6 {[%emt 0:00:06]} 11. f4 {[%emt 0:00:02]} Rac8 {[%emt 0:00:11]} 12. Rc1 {[%emt 0:00:05]} Ne7 {[%emt 0:00:06]} 13. Qf3 {[%emt 0:00:18]} Nf5 {[%emt 0:00:01] Hoping for ...cxd4.} 14. Bf2 {[%emt 0:00:02]} Be7 {[%emt 0:00:03]} 15. g4 {[%emt 0:00:08]} Nd6 {[%emt 0:00:01][%cal Of6e4]} 16. Qh3 {[%emt 0:00:40]} Nfe4 {[%emt 0:00:04]} 17. g5 {[%emt 0:00:15]} Qb7 {[%emt 0:01:05]} 18. Rg1 {[%emt 0:00:03]} Nf5 {[%emt 0:00:02]} 19. Qg2 $2 {[%emt 0:00:20]} (19. a3 $15) 19... Nxd2 $2 {[%emt 0:00:03]} ({Black should try} 19... cxd4 $19 20. exd4 Ned6) 20. Kxd2 $40 {[%emt 0:00:02][%mdl 128] Black needs to defend precisely.} Nd6 {[%emt 0:00:10]} 21. Qh3 {[%emt 0:00:13][%csl Gc2][%cal Rh3h7]} g6 {[%emt 0:00:01] [#]} (21... Ne4+ $11 22. Bxe4 dxe4) 22. Rg4 {[%emt 0:00:08] White is much more active.} ({Better is} 22. Qh6 $1 $16) 22... Nf5 {[%emt 0:00:03] [#]} (22... Ne4+ $1 $11 {remains equal.} 23. Bxe4 dxe4) 23. Rcg1 {[%emt 0:00:09] The board is on fire.} (23. Bxf5 $1 $16 {[%cal Og4h4] Hoping for Rh4!.} exf5 24. Rg3 cxd4 25. exd4) 23... cxd4 {[%emt 0:00:03]} 24. exd4 {[%emt 0:00:01]} f6 $2 {[%emt 0:00:01][%mdl 8192]} (24... Bd6 $11) 25. gxf6 $18 Bxf6 {[#]} 26. Nxg6 $1 {[%emt 0:00:02][%mdl 512]} hxg6 {[%emt 0:00:01]} (26... Rfe8 27. Bh4) 27. Rxg6+ {[%emt 0:00:01]} Bg7 {[%emt 0:00:01]} 28. Rxe6 {[%emt 0:00:24]} Qf7 {[%emt 0:00:00]} 29. Reg6 {[%emt 0:00:08] White wants to mate with Bxf5.} Rce8 {[%emt 0:00:07][%cal Bc8e8,Be8e2,Be2e1][%mdl 32]} 30. Bxf5 {[%emt 0:00:08]} Re2+ 31. Kc1 {[%emt 0:00:22]} Re1+ {[%emt 0:00:06]} 1-0